bitfinex-derivatives/quotes_SOLF0:USTF0_20241027
["timestamp","ask_amount","ask_price","bid_price","bid_amount"]
[1730041405539,6.9719,176.75,176.67,1.206]
[1730041405540,4.14,176.75,176.67,1.206]
[1730041405836,4.14,176.75,176.68,6.2860988]
[1730041406030,4.14,176.75,176.69,6.2860988]
[1730041406228,4.14,176.75,176.67,1.206]
[1730041406229,4.14,176.75,176.7,6.2860988]
[1730041406433,4.14,176.75,176.71,6.2860988]
[1730041406632,4.14,176.75,176.72,1.41646294]
[1730041406831,6.9719,176.75,176.72,2.8321]
[1730041407827,2.8319,176.75,176.72,2.8321]
[1730041408832,4.14,176.78,176.72,2.8321]
[1730041409030,2.832,176.74,176.67,1.206]
[1730041409235,2.832,176.74,176.71,2.8323]
[1730041410124,4.14,176.78,176.67,1.206]
[1730041410340,4.14,176.78,176.68,6.28546418]
[1730041410529,4.14,176.78,176.69,6.28546418]
[1730041410825,2.8319,176.75,176.72,2.8322]
[1730041411031,4.14,176.78,176.72,2.8322]
[1730041412034,2.8319,176.74,176.72,2.8322]
[1730041412342,4.14,176.78,176.67,1.206]
[1730041412534,4.14,176.78,176.68,6.28452921]
[1730041412733,2.832,176.74,176.69,6.28452921]
[1730041412940,2.832,176.74,176.71,2.8323]
[1730041413255,2.832,176.74,176.72,6.28452921]
[1730041413435,2.832,176.74,176.71,2.8323]
[1730041413634,2.832,176.74,176.72,6.28458456]
[1730041413838,2.832,176.74,176.71,2.8323]
[1730041414139,2.832,176.74,176.72,6.28458317]
[1730041414341,2.832,176.74,176.71,2.8323]
[1730041414640,2.832,176.74,176.72,6.28460147]
[1730041414834,2.832,176.74,176.71,2.8323]
[1730041415034,2.832,176.74,176.72,6.28475142]
[1730041415339,2.832,176.74,176.71,2.8323]
[1730041415540,2.832,176.74,176.72,1.41640311]
[1730041415737,2.832,176.74,176.71,2.8323]
[1730041416041,2.832,176.74,176.72,6.28435853]
[1730041416340,2.832,176.74,176.71,2.8323]
[1730041416543,2.832,176.74,176.72,6.28454099]
[1730041416741,2.832,176.74,176.71,2.8323]
[1730041417040,2.832,176.74,176.72,6.28466088]
[1730041417241,2.832,176.74,176.71,2.8323]
[1730041417442,2.832,176.74,176.72,6.28349248]
[1730041417736,2.832,176.74,176.71,2.8323]
[1730041417944,2.832,176.74,176.72,6.2832182]
[1730041418242,2.832,176.74,176.71,2.8323]
[1730041418431,4.14,176.78,176.72,1.41643861]
[1730041418643,9.90947092,176.85,176.73,6.28426991]
[1730041418839,6.58,176.88,176.74,7.51616991]
[1730041419035,6.58,176.88,176.75,6.28426991]
[1730041419036,4.14,176.85,176.75,6.28426991]
[1730041419240,4.14,176.85,176.74,1.2319]
[1730041419644,2.8315,176.77,176.74,4.0638]
[1730041419937,2.8315,176.77,176.75,1.41619118]
[1730041420230,2.8315,176.77,176.74,4.0638]
[1730041420434,2.8315,176.77,176.75,6.28290442]
[1730041420634,2.8315,176.77,176.74,4.0638]
[1730041420833,2.8315,176.77,176.75,6.28269038]
[1730041421029,2.8315,176.77,176.74,4.0638]
[1730041421230,2.8315,176.77,176.75,6.28279199]
[1730041421435,4.14,176.81,176.67,1.206]
[1730041421645,2.8318,176.75,176.68,11.65780779]
[1730041421945,4.14,176.81,176.69,6.28270779]
[1730041422245,4.14,176.8,176.74,2.8319]
[1730041422544,4.14,176.81,176.75,6.28270779]
[1730041422743,2.8315,176.77,176.76,1.41615221]
[1730041422940,2.8315,176.77,176.74,2.8319]
[1730041423243,2.8315,176.77,176.75,6.28181247]
[1730041423543,2.8315,176.77,176.74,2.8319]
[1730041423741,2.8315,176.77,176.75,1.4161916]
[1730041424045,2.8315,176.77,176.74,2.8319]
[1730041424348,2.8315,176.77,176.75,1.41619037]
[1730041424547,2.8315,176.77,176.74,2.8319]
[1730041424837,2.8315,176.77,176.75,6.28161908]
[1730041425044,2.8315,176.77,176.74,2.8319]
[1730041425248,2.8311,176.79,176.77,2.8314]
[1730041425542,4.14,176.81,176.73,1.2642]
[1730041425733,4.14,176.81,176.74,6.28106069]
[1730041425941,4.14,176.81,176.75,6.28106069]
[1730041426240,4.14,176.81,176.73,1.2642]
[1730041426544,4.14,176.81,176.72,4.14]
[1730041426739,4.14,176.81,176.73,6.28233866]
[1730041426936,4.14,176.81,176.73,2.8321]
[1730041427140,4.14,176.81,176.74,1.41624779]
[1730041427343,4.14,176.81,176.73,2.8321]
[1730041427542,2.8316,176.76,176.74,6.28112939]
[1730041427748,2.8316,176.76,176.73,2.8321]
[1730041428048,2.8316,176.76,176.74,1.41623451]
[1730041428246,2.8316,176.76,176.75,1.4161982]
[1730041428451,2.8314,176.78,176.75,1.4161982]
[1730041428654,2.8314,176.78,176.74,2.8318]
[1730041428950,2.8314,176.78,176.75,6.27989168]
[1730041429142,2.8314,176.78,176.74,2.8318]
[1730041429343,2.8315,176.77,176.75,1.41615767]
[1730041429546,2.8315,176.77,176.74,2.8318]
[1730041430551,4.14,176.81,176.76,2.8315]
[1730041431248,2.8312,176.79,176.76,2.8315]
[1730041431944,4.14,176.81,176.71,1.1734]
[1730041432148,4.14,176.81,176.72,6.27789973]
[1730041432340,4.14,176.81,176.73,6.27789973]
[1730041432540,4.14,176.81,176.74,7.46039973]
[1730041432747,4.14,176.81,176.75,6.27789973]
[1730041433048,2.8311,176.8,176.77,2.8313]
[1730041434348,2.8311,176.8,176.78,2.8313]
[1730041435244,2.8311,176.8,176.77,2.8314]
[1730041436948,2.8311,176.8,176.78,2.8312]
[1730041437344,2.8311,176.8,176.75,1.167]
[1730041437541,2.8311,176.8,176.77,2.8314]
[1730041438844,2.8309,176.81,176.78,2.8312]
[1730041439353,4.14,176.83,176.75,1.167]
[1730041439543,2.8311,176.8,176.77,2.8314]
[1730041439738,4.14,176.83,176.77,2.8314]
[1730041440751,4.14,176.83,176.78,2.8312]
[1730041441050,4.14,176.83,176.76,6.27000429]
[1730041441352,4.14,176.83,176.75,1.167]
[1730041441353,2.8309,176.81,176.75,1.167]
[1730041441554,2.8309,176.81,176.78,2.8313]
[1730041445148,2.8309,176.81,176.77,2.8314]
[1730041445353,2.8309,176.81,176.75,1.167]
[1730041445654,4.14,176.85,176.76,6.26656889]
[1730041445955,4.14,176.85,176.79,2.831]
[1730041446951,2.8306,176.83,176.8,2.8309]
[1730041447148,5.6577,176.94,176.79,4.14]
[1730041447347,2.8303,176.84,176.81,2.8307]
[1730041448571,2.83,176.87,176.8,5.3449]
[1730041448858,4.14,176.9,176.8,5.3449]
[1730041449359,2.8299,176.87,176.83,2.8304]
[1730041449560,4.14,176.9,176.83,2.8304]
[1730041449961,4.14,176.9,176.81,1.1837]
[1730041450666,2.8305,176.83,176.81,1.1837]
[1730041450865,4.14,176.9,176.81,1.1837]
[1730041451259,2.8298,176.88,176.83,2.8305]
[1730041451456,4.14,176.9,176.81,1.1837]
[1730041451969,2.8302,176.86,176.83,2.8305]
[1730041453155,2.8299,176.87,176.84,2.8303]
[1730041456565,4.14,176.9,176.81,1.1837]
[1730041456886,9.87288339,176.99,176.81,1.1837]
[1730041457092,4.14,177.01,176.82,4.83595171]
[1730041457336,4.14,177.01,176.83,4.14]
[1730041457493,4.14,177.01,176.83,5.3878]
[1730041457686,4.14,177.01,176.83,6.80337704]
[1730041458083,4.14,177.0,176.83,6.80337704]
[1730041458285,4.14,177.0,176.91,2.8292]
[1730041458478,4.14,177.0,176.89,4.14]
[1730041459066,4.14,177.0,176.86,4.14]
[1730041460274,5.6562,176.99,176.85,4.14]
[1730041460772,2.8297,176.88,176.85,4.14]
[1730041461567,2.8297,176.88,176.85,6.9702]
[1730041462069,5.6562,176.99,176.85,4.14]
[1730041462276,2.8293,176.91,176.85,4.14]
[1730041462575,4.14,176.98,176.85,4.14]
[1730041462778,2.8287,176.95,176.85,4.14]
[1730041462976,4.14,176.94,176.85,4.14]
[1730041463178,4.14,176.94,176.86,2.8299]
[1730041463680,4.14,176.94,176.86,1.2205]
[1730041463877,4.14,176.94,176.88,2.8296]
[1730041464269,4.14,176.94,176.86,1.2205]
[1730041464575,5.00932906,177.02,176.86,1.2205]
[1730041464774,2.829,176.93,176.87,1.2175]
[1730041465168,4.24,176.97,176.89,2.8294]
[1730041465376,2.8291,176.92,176.89,2.8294]
[1730041466373,4.24,176.97,176.87,1.2175]
[1730041466969,2.8294,176.9,176.87,4.0473]
[1730041467479,4.24,176.97,176.89,2.8294]
[1730041467684,4.24,176.97,176.87,1.2175]
[1730041468579,4.24,176.97,176.88,2.8296]
[1730041469188,2.8287,176.95,176.87,1.2175]
[1730041469494,4.24,176.97,176.89,2.8295]
[1730041469793,4.24,176.97,176.87,1.2175]
[1730041471788,2.8294,176.9,176.87,4.0472]
[1730041471996,4.24,176.97,176.83,1.2478]
[1730041472188,4.24,176.97,176.84,4.22]
[1730041472189,2.1701,176.96,176.84,4.22]
[1730041472494,2.8299,176.87,176.84,2.8303]
[1730041472692,4.22,176.92,176.83,4.22]
[1730041472891,4.22,176.92,176.81,4.22]
[1730041473789,4.22,176.92,176.83,2.8304]
[1730041474286,4.22,176.92,176.81,7.0708]
[1730041474496,4.22,176.92,176.81,4.24]
[1730041475088,2.8302,176.85,176.82,2.8306]
[1730041475290,4.22,176.92,176.8,4.24]
[1730041476598,2.8301,176.86,176.83,2.8304]
[1730041476794,2.8301,176.86,176.8,4.24]
[1730041477994,4.22,176.92,176.8,4.24]
[1730041478197,2.8302,176.85,176.82,2.8305]
[1730041478502,4.22,176.92,176.8,4.24]
[1730041478703,2.8303,176.85,176.81,2.8307]
[1730041479297,2.8303,176.85,176.82,2.8306]
[1730041479898,2.8304,176.84,176.81,2.8308]
[1730041480898,2.8307,176.82,176.79,5.3564]
[1730041481907,2.8307,176.82,176.79,4.0938]
[1730041482101,2.8309,176.81,176.79,1.2627]
[1730041482300,4.24,176.88,176.74,4.83389068]
[1730041482595,1.183,176.87,176.75,4.24]
[1730041483208,1.183,176.87,176.78,2.8312]
[1730041483209,2.8308,176.82,176.78,2.8312]
[1730041483507,4.24,176.85,176.78,2.8312]
[1730041484907,2.8309,176.81,176.78,2.8312]
[1730041485098,4.24,176.85,176.76,2.8315]
[1730041485404,2.8311,176.8,176.74,4.24]
[1730041485605,2.8311,176.8,176.76,2.8315]
[1730041485806,2.8311,176.8,176.74,4.24]
[1730041486708,4.24,176.85,176.74,4.24]
[1730041486709,2.8309,176.81,176.77,2.8313]
[1730041486900,4.24,176.85,176.74,5.65592116]
[1730041487203,2.8311,176.8,176.76,2.8316]
[1730041487599,2.8311,176.8,176.74,4.24]
[1730041487799,4.24,176.85,176.74,4.24]
[1730041488203,4.24,176.85,176.74,5.65593728]
[1730041488399,2.8311,176.8,176.76,2.8315]
[1730041489001,2.8311,176.8,176.74,5.65593728]
[1730041489400,4.24,176.85,176.74,5.65593728]
[1730041489604,4.24,176.85,176.73,7.9694]
[1730041489906,4.24,176.85,176.73,5.14537062]
[1730041490111,4.24,176.85,176.73,9.98738626]
[1730041490408,4.24,176.85,176.73,7.9694]
[1730041490802,4.24,176.85,176.75,2.8318]
[1730041492506,2.8313,176.78,176.75,2.8318]
[1730041493704,4.24,176.81,176.73,7.9694]
[1730041493905,2.8312,176.79,176.75,2.8317]
[1730041494103,4.24,176.81,176.73,7.9694]
[1730041494307,2.831,176.8,176.77,2.8314]
[1730041494505,2.831,176.8,176.73,7.9694]
[1730041495515,2.831,176.8,176.73,12.81254227]
[1730041495712,2.831,176.8,176.73,7.9694]
[1730041496304,2.831,176.8,176.74,1.41598167]
[1730041496505,2.831,176.8,176.73,7.9694]
[1730041497111,2.8312,176.79,176.73,7.9694]
[1730041497899,2.8312,176.79,176.76,2.8316]
[1730041498105,4.28,176.84,176.73,7.9694]
[1730041499112,2.8308,176.81,176.78,2.8312]
[1730041502212,2.8308,176.81,176.73,7.9694]
[1730041502213,2.8307,176.82,176.79,2.831]
[1730041502808,4.28,176.84,176.79,2.831]
[1730041503009,2.8308,176.81,176.79,2.831]
[1730041503906,4.28,176.84,176.74,4.84470403]
[1730041504117,4.28,176.84,176.75,6.2605741]
[1730041504315,4.28,176.84,176.73,7.9694]
[1730041504316,4.28,176.84,176.74,6.26063694]
[1730041504617,2.8309,176.81,176.77,2.8313]
[1730041504818,4.28,176.84,176.74,4.84755729]
[1730041505416,2.8312,176.79,176.76,2.8315]
[1730041507416,2.8312,176.79,176.77,2.8315]
[1730041508318,4.28,176.84,176.74,6.26267022]
[1730041508514,2.8311,176.8,176.77,2.8315]
[1730041511409,4.28,176.84,176.74,4.84672785]
[1730041511611,2.8312,176.79,176.76,2.8316]
[1730041511816,2.8312,176.79,176.73,7.9694]
[1730041512007,2.8312,176.79,176.74,1.41598055]
[1730041512211,2.8312,176.79,176.73,7.9694]
[1730041512408,2.8312,176.79,176.74,1.41598538]
[1730041512612,2.8312,176.79,176.73,7.9694]
[1730041512813,2.8312,176.79,176.74,1.41598538]
[1730041513020,2.8312,176.79,176.73,7.9694]
[1730041513220,2.8312,176.79,176.74,1.41598917]
[1730041513420,2.8312,176.79,176.73,7.9694]
[1730041513624,2.8312,176.79,176.74,6.26349569]
[1730041513816,2.8312,176.79,176.74,4.84750652]
[1730041514315,2.8312,176.79,176.77,2.8315]
[1730041514518,2.8312,176.79,176.73,7.9694]
[1730041514718,2.8312,176.79,176.74,1.41598672]
[1730041514914,4.28,176.8,176.73,2.4756]
[1730041515135,4.28,176.79,176.66,11.71841856]
[1730041515325,2.84778469,176.82,176.67,9.12930046]
[1730041515326,4.28,176.78,176.67,9.12930046]
[1730041515525,2.8321,176.73,176.7,2.8324]
[1730041516022,4.28,176.76,176.7,2.8324]
[1730041516517,2.8322,176.73,176.7,2.8324]
[1730041516721,4.28,176.76,176.7,2.8324]
[1730041517325,4.28,176.76,176.68,1.41631799]
[1730041517526,4.28,176.76,176.64,6.26561845]
[1730041517714,2.8324,176.72,176.68,2.8329]
[1730041519317,2.8327,176.69,176.66,2.8331]
[1730041519532,4.28,176.76,176.66,2.8331]
[1730041520028,2.8325,176.71,176.67,2.833]
[1730041520619,4.28,176.72,176.68,2.8328]
[1730041520620,7.1123,176.72,176.68,2.8328]
[1730041520811,4.28,176.72,176.68,2.8328]
[1730041521416,4.28,176.72,176.63,9.80574315]
[1730041521619,4.28,176.72,176.64,1.41631799]
[1730041522018,4.28,176.74,176.71,2.8323]
[1730041522213,4.28,176.75,176.64,6.26604315]
[1730041522413,4.28,176.76,176.65,10.54604315]
[1730041522613,7.1118,176.76,176.65,5.69631799]
[1730041522819,4.28,176.76,176.72,2.8321]
[1730041523826,2.8318,176.75,176.72,2.8321]
[1730041527817,2.8316,176.77,176.74,2.8318]
[1730041528418,4.22,176.78,176.7,3.6457]
[1730041528621,2.8318,176.75,176.72,2.8321]
[1730041529018,2.8318,176.76,176.72,2.8322]
[1730041529726,2.8318,176.75,176.72,2.8322]
[1730041529931,4.22,176.78,176.75,2.8318]
[1730041530133,4.22,176.8,176.75,2.8318]
[1730041530320,2.8314,176.78,176.75,2.8318]
[1730041531829,2.8315,176.77,176.75,2.8318]
[1730041536030,2.8315,176.77,176.74,2.8319]
[1730041536919,2.8314,176.78,176.75,2.8317]
[1730041537360,2.8313,176.79,176.73,2.8321]
[1730041537631,2.8313,176.79,176.71,4.84893249]
[1730041537828,2.8313,176.79,176.72,1.41610935]
[1730041538226,2.8313,176.78,176.75,2.8317]
[1730041538421,2.8313,176.78,176.7,3.6457]
[1730041538422,4.22,176.8,176.71,6.26575698]
[1730041538627,4.22,176.8,176.72,1.41615868]
[1730041538832,4.22,176.8,176.71,4.84964763]
[1730041539030,2.8316,176.77,176.74,2.8318]
[1730041543430,4.22,176.8,176.7,3.6457]
[1730041543633,4.22,176.8,176.71,6.27319258]
[1730041543833,4.22,176.8,176.72,6.27319258]
[1730041544027,2.8316,176.77,176.74,2.8319]
[1730041544434,4.22,176.8,176.72,6.27328096]
[1730041544634,2.8321,176.74,176.71,2.8324]
[1730041544832,4.22,176.76,176.7,2.4766]
[1730041545041,2.8324,176.72,176.69,2.8326]
[1730041545242,2.8324,176.72,176.7,6.27590369]
[1730041545439,2.8324,176.72,176.69,2.8326]
[1730041545643,2.8319,176.75,176.7,6.27586781]
[1730041545941,4.22,176.76,176.64,4.22]
[1730041546141,4.22,176.76,176.65,6.27653173]
[1730041546340,2.8322,176.73,176.66,6.27653173]
[1730041546540,2.8322,176.73,176.67,6.27653173]
[1730041546744,2.8322,176.73,176.68,6.27653173]
[1730041546941,2.8322,176.73,176.69,9.10913173]
[1730041547241,2.8322,176.73,176.7,1.41640654]
[1730041547542,2.8322,176.73,176.7,2.8325]
[1730041549536,2.8323,176.72,176.64,4.22]
[1730041549739,2.8323,176.72,176.69,2.8327]
[1730041549935,2.8323,176.72,176.7,1.41643591]
[1730041550139,2.8323,176.72,176.69,2.8327]
[1730041550339,2.8323,176.72,176.7,1.41641549]
[1730041550540,2.8323,176.72,176.69,2.8327]
[1730041550738,4.22,176.76,176.7,1.41640932]
[1730041550943,4.22,176.76,176.69,2.8327]
[1730041551143,4.22,176.76,176.7,1.41641055]
[1730041551440,2.8322,176.73,176.69,2.8327]
[1730041551646,2.8322,176.73,176.7,4.24901672]
[1730041551942,2.8322,176.73,176.7,2.8326]
[1730041552152,4.22,176.76,176.7,2.8326]
[1730041552153,2.8323,176.72,176.7,2.8326]
[1730041554146,122.56923083,176.82,176.65,4.22]
[1730041554349,122.56923083,176.82,176.66,6.28137875]
[1730041554542,4.22,176.81,176.67,6.28137875]
[1730041554737,2.8315,176.77,176.71,2.8323]
[1730041555043,2.8315,176.77,176.72,8.72317875]
[1730041555241,2.8315,176.77,176.73,6.28137875]
[1730041555441,4.22,176.81,176.74,6.28137875]
[1730041555644,4.22,176.81,176.72,2.4418]
[1730041555848,4.22,176.81,176.73,4.8628411]
[1730041556051,4.22,176.81,176.75,2.8317]
[1730041557154,4.22,176.81,176.72,2.4418]
[1730041557348,4.22,176.81,176.73,6.27892769]
[1730041557549,4.22,176.81,176.74,6.27892769]
[1730041557751,2.8314,176.78,176.75,4.24781686]
[1730041557951,2.8314,176.78,176.75,2.8317]
[1730041559546,4.22,176.81,176.72,2.4418]
[1730041559745,4.22,176.81,176.74,2.8318]
[1730041559946,4.22,176.81,176.75,1.41611447]
[1730041560147,4.22,176.81,176.74,2.8318]
[1730041560454,2.8314,176.78,176.75,1.41612696]
[1730041560656,2.8314,176.78,176.74,2.8318]
[1730041560856,2.8315,176.77,176.75,6.28108823]
[1730041561157,2.8315,176.77,176.74,2.8318]
[1730041561359,2.8315,176.77,176.75,6.28124224]
[1730041561658,2.8315,176.77,176.74,2.8318]
[1730041561860,2.8315,176.77,176.75,6.28145023]
[1730041562065,2.8315,176.77,176.74,2.8318]
[1730041562453,4.22,176.81,176.72,2.4418]
[1730041563060,2.8314,176.78,176.75,2.8317]
[1730041563860,4.22,176.81,176.71,4.14]
[1730041564048,4.22,176.81,176.69,1.2484]
[1730041564450,4.22,176.81,176.7,4.8678488]
[1730041564657,4.22,176.81,176.73,2.8321]
[1730041564658,2.8317,176.76,176.73,2.8321]
[1730041567254,2.832,176.74,176.71,2.8323]
[1730041567451,2.832,176.74,176.69,1.2484]
[1730041567857,2.832,176.74,176.71,2.8323]
[1730041569061,2.832,176.74,176.69,1.2484]
[1730041569260,2.832,176.74,176.72,2.8322]
[1730041569461,2.832,176.74,176.73,4.87153854]
[1730041569765,2.832,176.74,176.73,6.28780648]
[1730041570368,2.8314,176.78,176.76,2.8316]
[1730041570559,4.14,176.79,176.69,1.2484]
[1730041570758,4.14,176.8,176.7,6.28783434]
[1730041570965,4.14,176.8,176.71,6.28783434]
[1730041571158,4.14,176.8,176.72,6.28783434]
[1730041571354,4.14,176.8,176.73,6.28783434]
[1730041571553,2.8319,176.75,176.72,2.8321]
[1730041571865,2.8319,176.75,176.73,4.87254702]
[1730041572169,2.8319,176.75,176.72,2.8321]
[1730041572465,2.8319,176.75,176.73,9.12096719]
[1730041572664,2.8319,176.75,176.73,2.832]
[1730041573964,2.8315,176.77,176.72,2.8322]
[1730041574263,4.14,176.8,176.73,6.28953394]
[1730041574466,4.14,176.8,176.72,2.8322]
[1730041574664,2.8319,176.75,176.73,6.28968818]
[1730041574867,2.8319,176.75,176.72,2.8322]
[1730041575070,2.8319,176.75,176.73,6.28968329]
[1730041575260,2.8319,176.75,176.72,2.8322]
[1730041575670,2.8319,176.75,176.73,6.2901375]
[1730041575860,2.8319,176.75,176.72,2.8322]
[1730041576170,2.8319,176.75,176.73,6.29013762]
[1730041576363,2.8319,176.75,176.72,2.8322]
[1730041576563,2.8317,176.76,176.73,4.24827414]
[1730041576763,4.14,176.8,176.74,1.41627414]
[1730041576965,4.14,176.8,176.69,1.2484]
[1730041577171,2.8319,176.75,176.72,2.8322]
[1730041577368,2.8319,176.75,176.73,6.29096264]
[1730041577670,2.8319,176.75,176.74,1.41627414]
[1730041579280,2.8319,176.75,176.72,2.8322]
[1730041579466,2.8319,176.75,176.69,1.2484]
[1730041579467,4.14,176.8,176.73,6.29037756]
[1730041579663,4.14,176.8,176.69,1.2484]
[1730041579664,2.8319,176.74,176.71,2.8323]
[1730041579865,2.8319,176.74,176.72,6.29042204]
[1730041580067,4.14,176.8,176.73,6.29042204]
[1730041580264,2.8318,176.75,176.74,1.4162773]
[1730041580462,1.26,176.83,176.74,1.4162773]
[1730041580666,9.90937193,176.88,176.75,6.29065119]
[1730041580860,4.14,176.89,176.76,11.61825119]
[1730041581158,4.14,176.88,176.77,10.43042023]
[1730041581364,2.8308,176.82,176.78,7.7021304]
[1730041581571,2.8308,176.82,176.78,2.8312]
[1730041581765,2.8308,176.82,176.79,1.41587104]
[1730041582068,2.8312,176.79,176.77,4.14]
[1730041582270,4.14,176.88,176.78,6.28605833]
[1730041582568,2.8303,176.84,176.8,2.831]
[1730041582774,4.14,176.87,176.77,4.14]
[1730041583178,2.8309,176.81,176.78,6.28742468]
[1730041583473,4.14,176.87,176.77,6.9714]
[1730041583668,4.14,176.87,176.76,4.0191]
[1730041583972,0.9248,176.86,176.77,6.28759764]
[1730041584168,2.8305,176.83,176.76,4.0191]
[1730041584368,4.14,176.83,176.77,6.287311]
[1730041584568,4.14,176.83,176.76,4.0191]
[1730041584773,2.8311,176.8,176.77,6.28695173]
[1730041584972,2.8311,176.8,176.76,4.0191]
[1730041585170,2.8311,176.8,176.77,6.28715978]
[1730041585369,2.8311,176.8,176.76,4.0191]
[1730041585575,2.8311,176.8,176.77,4.87083553]
[1730041585769,2.8311,176.8,176.76,4.0191]
[1730041585984,2.8311,176.8,176.77,6.28664132]
[1730041586276,2.8311,176.8,176.76,4.0191]
[1730041586477,2.8311,176.8,176.77,6.28640263]
[1730041586674,2.8311,176.8,176.77,4.8704589]
[1730041586876,2.8311,176.8,176.76,4.0191]
[1730041587176,2.8311,176.8,176.77,6.2865209]
[1730041587376,2.8312,176.79,176.76,4.0191]
[1730041587578,2.8312,176.79,176.77,1.4159597]
[1730041587778,2.8312,176.79,176.76,4.0191]
[1730041588078,2.8312,176.79,176.77,1.4159597]
[1730041588274,2.8312,176.79,176.76,4.0191]
[1730041588475,2.8312,176.79,176.77,6.28612955]
[1730041588777,2.8312,176.79,176.76,4.0191]
[1730041589078,2.8312,176.79,176.77,6.28610444]
[1730041589278,2.8312,176.79,176.76,4.0191]
[1730041589479,2.8312,176.79,176.77,6.28657412]
[1730041589780,2.8312,176.79,176.76,4.0191]
[1730041589983,2.8312,176.79,176.77,1.41600298]
[1730041590171,2.8312,176.79,176.76,4.0191]
[1730041590368,2.8312,176.79,176.77,4.8701935]
[1730041590573,2.8312,176.79,176.76,4.0191]
[1730041590773,2.8312,176.79,176.77,1.4160057]
[1730041591074,2.8312,176.79,176.76,4.0191]
[1730041591267,2.8312,176.79,176.77,6.28571014]
[1730041591472,2.8312,176.79,176.76,4.0191]
[1730041591674,2.8312,176.79,176.77,6.28561937]
[1730041591876,2.8312,176.79,176.76,4.0191]
[1730041592180,2.8312,176.79,176.77,1.41599088]
[1730041592368,2.8312,176.79,176.76,4.0191]
[1730041592572,2.8313,176.78,176.77,1.41600938]
[1730041593276,2.8313,176.78,176.75,2.8317]
[1730041593481,2.8313,176.78,176.76,6.28530574]
[1730041593684,2.8313,176.78,176.75,2.8317]
[1730041593882,2.8313,176.78,176.76,6.28529879]
[1730041594085,2.8313,176.78,176.75,2.8317]
[1730041594284,4.14,176.83,176.76,6.28468157]
[1730041594476,2.8312,176.79,176.76,2.8315]
[1730041594681,2.8312,176.79,176.77,1.41601361]
[1730041594879,4.14,176.83,176.76,2.8315]
[1730041595380,2.8314,176.78,176.75,2.8317]
[1730041595579,6.95934742,176.83,176.76,1.41608769]
[1730041595774,6.95934742,176.83,176.72,4.14]
[1730041595973,6.95934742,176.83,176.73,6.28633895]
[1730041596181,12.62034742,176.83,176.74,6.28633895]
[1730041596379,12.62034742,176.83,176.7,1.2118]
[1730041596686,2.8317,176.76,176.73,2.8321]
[1730041596887,2.8317,176.76,176.74,6.28644083]
[1730041597085,2.8317,176.76,176.73,2.8321]
[1730041597289,2.8317,176.76,176.74,6.28671468]
[1730041597491,2.8317,176.76,176.75,1.416182]
[1730041597679,4.14,176.79,176.72,2.8322]
[1730041597680,2.8319,176.75,176.72,2.8322]
[1730041597886,4.14,176.79,176.73,6.28686154]
[1730041598192,4.14,176.79,176.74,1.41623077]
[1730041598389,4.14,176.79,176.72,2.8322]
[1730041598584,4.14,176.79,176.73,6.28681854]
[1730041598792,4.14,176.79,176.7,1.2118]
[1730041598793,4.14,176.79,176.74,1.41623134]
[1730041598993,4.14,176.79,176.67,92.28440321]
[1730041599293,4.14,176.79,176.69,2.8327]
[1730041599294,2.8318,176.75,176.69,2.8327]